fUSD/lending_fUSD_20260620
["ID","MTS","AMOUNT","RATE_DAILY","PERIOD"]
[425786913,1781889047000,-3503.20387724,0.00031649,2]
[425786909,1781889047000,-580.01,0.00031649,7]
[425786908,1781889047000,-588.82,0.00031649,30]
[425786912,1781889047000,-507.7,0.00031649,7]
[425786910,1781889047000,-604.25,0.00031649,7]
[425786914,1781889047000,-500.0,0.00031706,7]
[425786916,1781889047000,-348.73,0.000318,7]
[425786915,1781889047000,-1111.11,0.00031733,30]
[425786917,1781889047000,-450.040392,0.00031848,2]
[425786893,1781889047000,-242.15909246,0.00031331,2]
[425786907,1781889047000,-150.0,0.0003161,2]
[425786892,1781889047000,-534.0,0.00031312,2]
[425786918,1781889047000,-621.78829552,0.00031877,2]
[425786891,1781889047000,-534.0,0.00031312,2]
[425786868,1781889047000,-151.86,0.00031,7]
[425786869,1781889047000,-348.73,0.00031,7]
[425786870,1781889047000,-150.0,0.00031011,2]
[425786871,1781889047000,-1215.0,0.00031074,2]
[425786872,1781889047000,-3647.0,0.00031074,2]
[425786878,1781889047000,-473.0,0.00031146,2]
[425786880,1781889047000,-150.0,0.00031233,2]
[425786874,1781889047000,-6014.495,0.00031082,28]
[425786877,1781889047000,-340.482433,0.00031132,2]
[425786876,1781889047000,-268.28,0.000311,7]
[425786875,1781889047000,-168.691,0.00031082,28]
[425786879,1781889047000,-1000.0,0.000312,7]
[425786881,1781889047000,-1111.11,0.00031267,30]
[425786882,1781889047000,-1721.23356071,0.0003128,2]
[425786884,1781889047000,-150.0,0.00031311,2]
[425786886,1781889047000,-534.0,0.00031312,2]
[425786887,1781889047000,-534.0,0.00031312,2]
[425786885,1781889047000,-534.0,0.00031312,2]
[425786883,1781889047000,-82942.43096089,0.000313,3]
[425786889,1781889047000,-534.0,0.00031312,2]
[425786888,1781889047000,-534.0,0.00031312,2]
[425786894,1781889047000,-290.3986294,0.00031331,2]
[425786890,1781889047000,-534.0,0.00031312,2]
[425786895,1781889047000,-151.0,0.00031331,2]
[425786927,1781889047000,-279.0,0.00031957,30]
[425786873,1781889047000,-6081.0,0.00031074,2]
[425786921,1781889047000,-301.14337869,0.00031879,2]
[425786948,1781889047000,-214.18453032,0.00032344,14]
[425786950,1781889047000,-150.0,0.00032345,2]
[425786951,1781889047000,-150.0,0.00032345,2]
[425786961,1781889047000,-874.29913098,0.0003248,30]
[425786953,1781889047000,-198.27242678,0.0003246,2]
[425786952,1781889047000,-260.4103811,0.00032427,2]
[425786956,1781889047000,-161.26124546,0.00032473,2]
[425786954,1781889047000,-170.69764184,0.00032464,2]
[425786955,1781889047000,-154.7326681,0.00032473,2]
[425786957,1781889047000,-216.90468957,0.00032473,2]
[425786959,1781889047000,-215.20915636,0.00032473,2]
[425786958,1781889047000,-202.04974908,0.00032473,2]
[425786963,1781889047000,-165.73596182,0.00032481,2]
[425786962,1781889047000,-196.84755954,0.00032481,2]
[425786971,1781889047000,-778.9336291,0.00032677,2]
[425786968,1781889047000,-941.18,0.00032598,7]
[425786970,1781889047000,-150.0,0.00032603,2]
[425786967,1781889047000,-586.12,0.00032598,7]
[425786969,1781889047000,-492.46,0.00032598,7]
[425786965,1781889047000,-800.0,0.000325,2]
[425786964,1781889047000,-348.73,0.000325,7]
[425786966,1781889047000,-150.0,0.00032562,2]
[425786919,1781889047000,-775.4783256,0.00031877,2]
[425786949,1781889047000,-214.18453032,0.00032344,14]
[425786947,1781889047000,-257.92607563,0.00032263,2]
[425786960,1781889047000,-155.48778914,0.00032473,2]
[425786942,1781889047000,-373.9095359,0.00032114,2]
[425786945,1781889047000,-184.0,0.000322,30]
[425786920,1781889047000,-251.11897888,0.00031879,2]
[425786924,1781889047000,-1001.0,0.00031945,120]
[425786925,1781889047000,-155.0,0.00031952,30]
[425786922,1781889047000,-151.0,0.00031879,2]
[425786923,1781889047000,-644.40409178,0.00031879,2]
[425786928,1781889047000,-410.0,0.00031957,30]
[425786930,1781889047000,-238.0,0.00031957,30]
[425786931,1781889047000,-150.0,0.00031957,30]
[425786929,1781889047000,-355.0,0.00031957,30]
[425786933,1781889047000,-800.0,0.00032,2]
[425786926,1781889047000,-155.0,0.00031952,30]
[425786932,1781889047000,-164.0,0.00031957,30]
[425786946,1781889047000,-1500.0,0.00032227,10]
[425786938,1781889047000,-800.0,0.00032,2]
[425786944,1781889047000,-1111.11,0.000322,30]
[425786943,1781889047000,-1641.08,0.0003212,7]
[425786941,1781889047000,-534.0,0.0003204,2]
[425786939,1781889047000,-150.0,0.00032037,2]
[425786940,1781889047000,-164.0,0.00032037,2]
[425786935,1781889047000,-157.0,0.00032,7]
[425786937,1781889047000,-800.0,0.00032,2]
[425786936,1781889047000,-800.0,0.00032,2]
[425786934,1781889047000,-268.28,0.00032,7]
[425786991,1781889048000,-150.0,0.00032955,2]
[425786992,1781889048000,-150.0,0.00032955,2]
[425786994,1781889048000,-150.48387042,0.00032955,2]
[425786988,1781889048000,-155.0,0.00032952,30]
[425786990,1781889048000,-248.57668789,0.00032955,2]
[425786993,1781889048000,-150.0,0.00032955,2]
[425787005,1781889048000,-238.0,0.00032957,30]
[425786998,1781889048000,-501.62409538,0.00032955,2]
[425787006,1781889048000,-269.29139067,0.00032999,7]
[425786997,1781889048000,-150.0,0.00032955,2]
[425786999,1781889048000,-500.0,0.00032955,2]
[425786987,1781889048000,-2000.0,0.000329,7]
[425787001,1781889048000,-500.0,0.00032955,2]
[425786995,1781889048000,-150.0,0.00032955,2]
[425786989,1781889048000,-155.0,0.00032952,30]
[425786980,1781889048000,-150.0,0.00032877,2]
[425786986,1781889048000,-644.2101827,0.000329,2]
[425786981,1781889048000,-500.0,0.00032877,2]
[425786975,1781889048000,-2000.0,0.000328,7]
[425786982,1781889048000,-500.0,0.00032877,2]
[425786976,1781889048000,-1641.08,0.00032805,7]
[425786979,1781889048000,-239.52,0.00032877,2]
[425786978,1781889048000,-671.26000469,0.00032873,2]
[425786972,1781889048000,-2000.0,0.000327,7]
[425786984,1781889048000,-157.141913,0.00032877,120]
[425786977,1781889048000,-270.0455652,0.00032811,2]
[425786973,1781889048000,-171.30093727,0.00032745,30]
[425786974,1781889048000,-150.0,0.00032745,30]
[425786983,1781889048000,-434.61131837,0.00032877,2]
[425787000,1781889048000,-500.0,0.00032955,2]
[425786985,1781889048000,-186.99453517,0.000329,2]
[425787003,1781889048000,-410.0,0.00032957,30]
[425786996,1781889048000,-150.0,0.00032955,2]
[425787004,1781889048000,-355.0,0.00032957,30]
[425787037,1781889048000,-1127.01328599,0.00033,2]
[425787036,1781889048000,-395.85169542,0.00033,2]
[425787034,1781889048000,-968.92685857,0.00030189,2]
[425787035,1781889048000,-1533.44895062,0.00033,2]
[425787032,1781889048000,-670.3,0.00029983,7]
[425787033,1781889048000,-1358.22314143,0.00030189,2]
[425787031,1781889048000,-670.3,0.00029906,30]
[425787026,1781889048000,-670.3,0.00029599,2]
[425787027,1781889048000,-670.3,0.00029676,30]
[425787030,1781889048000,-155.76862558,0.00029829,2]
[425787029,1781889048000,-514.53137442,0.00029829,2]
[425787028,1781889048000,-670.3,0.00029753,7]
[425787023,1781889048000,-311.08601055,0.00033,2]
[425787022,1781889048000,-12499.98,0.00033,2]
[425787020,1781889048000,-15000.0,0.00033,2]
[425787025,1781889048000,-8466.53104938,0.00033,2]
[425787021,1781889048000,-9999.99,0.00033,2]
[425787007,1781889048000,-12474.70576625,0.00033,7]
[425787009,1781889048000,-7635.33,0.00033,2]
[425787008,1781889048000,-151.86,0.00033,30]
[425787015,1781889048000,-22499.99,0.00033,2]
[425787024,1781889048000,-186.65160633,0.00033,30]
[425787012,1781889048000,-15000.0,0.00033,2]
[425787013,1781889048000,-12499.99,0.00033,2]
[425787017,1781889048000,-3139.54,0.00033,2]
[425787011,1781889048000,-22499.99,0.00033,2]
[425787014,1781889048000,-15000.0,0.00033,2]
[425787010,1781889048000,-22499.99,0.00033,2]
[425787016,1781889048000,-9999.99,0.00033,2]
[425787018,1781889048000,-12499.98,0.00033,2]
[425787019,1781889048000,-4121.46,0.00033,2]
[425787002,1781889048000,-279.0,0.00032957,30]
[425787042,1781889049000,-268.28,0.00033,30]
[425787039,1781889049000,-22499.98,0.00033,2]
[425787040,1781889049000,-8481.78,0.00033,2]
[425787041,1781889049000,-22499.95,0.00033,2]
[425787038,1781889049000,-20977.12501859,0.00033,2]
[425787043,1781889049000,-167.97,0.00033,30]
[425787044,1781889049000,-168.48,0.00033,30]
[425787048,1781889049000,-214.35443387,0.00033161,2]
[425787046,1781889049000,-373.9095359,0.00033114,2]
[425787045,1781889049000,-15000.0,0.0003307,2]
[425787047,1781889049000,-300.22922808,0.00033123,2]
[425787049,1781889049000,-1059.09064831,0.00033161,2]
[425787050,1781889049000,-458208.93357559,0.000332,2]
[425787051,1781889049000,-436.934924,0.000332,7]
[425787052,1781889049000,-436.934924,0.000332,7]
[425787091,1781889050000,-169.92,0.00033914,3]
[425787088,1781889050000,-350672.19448177,0.000339,2]
[425787089,1781889050000,-290.3986294,0.00033901,2]
[425787090,1781889050000,-169.92,0.00033914,3]
[425787085,1781889050000,-393.69511908,0.00033761,2]
[425787087,1781889050000,-151.0,0.00033818,2]
[425787094,1781889050000,-155.0,0.00033952,30]
[425787084,1781889050000,-275.36468383,0.00033753,2]
[425787082,1781889050000,-310.97557828,0.00033753,2]
[425787081,1781889050000,-430.41831273,0.00033753,2]
[425787086,1781889050000,-331.47192365,0.00033761,2]
[425787095,1781889050000,-279.0,0.00033957,30]
[425787097,1781889050000,-355.0,0.00033957,30]
[425787093,1781889050000,-1522.21,0.00033928,2]
[425787107,1781889050000,-756.49,0.00034,30]
[425787096,1781889050000,-410.0,0.00033957,30]
[425787099,1781889050000,-791.21,0.00033961,7]
[425787108,1781889050000,-173224.10877586,0.00034,2]
[425787100,1781889050000,-150.0,0.00033973,2]
[425787098,1781889050000,-238.0,0.00033957,30]
[425787105,1781889050000,-150.0,0.00034,2]
[425787103,1781889050000,-150.0,0.00034,2]
[425787106,1781889050000,-256.74,0.00034,30]
[425787083,1781889050000,-150.852627,0.00033753,120]
[425787092,1781889050000,-1000.0,0.00033928,2]
[425787079,1781889050000,-433.80937914,0.00033753,2]
[425787055,1781889050000,-151.0,0.000332,7]
[425787078,1781889050000,-322.52249092,0.00033753,2]
[425787102,1781889050000,-1229.0,0.00033997,2]
[425787054,1781889050000,-436.934924,0.000332,7]
[425787053,1781889050000,-436.934924,0.000332,7]
[425787056,1781889050000,-151.0,0.000332,7]
[425787060,1781889050000,-791.21,0.00033276,7]
[425787058,1781889050000,-150.0,0.0003324,2]
[425787059,1781889050000,-150.0,0.0003324,2]
[425787057,1781889050000,-150.0,0.0003324,2]
[425787061,1781889050000,-3560.0,0.00033288,2]
[425787063,1781889050000,-1360.0,0.00033288,2]
[425787062,1781889050000,-1276.0,0.00033288,2]
[425787080,1781889050000,-404.09949815,0.00033753,2]
[425787064,1781889050000,-155.660658,0.00033298,120]
[425787071,1781889050000,-912.06,0.00033548,30]
[425787069,1781889050000,-1500.0,0.00033516,10]
[425787068,1781889050000,-1641.09,0.0003349,7]
[425787067,1781889050000,-1109.79367724,0.00033437,2]
[425787070,1781889050000,-567.98,0.00033548,30]
[425787072,1781889050000,-573.84256017,0.00033561,3]
[425787073,1781889050000,-1450.18339001,0.00033615,2]
[425787074,1781889050000,-377323.0,0.0003367,30]
[425787077,1781889050000,-309.4653362,0.00033753,2]
[425787075,1781889050000,-66752.69797925,0.000337,7]
[425787076,1781889050000,-341.39528367,0.00033743,2]
[425787065,1781889050000,-348.73,0.000333,7]
[425787104,1781889050000,-150.0,0.00034,2]
[425787066,1781889050000,-280.03725111,0.00033356,2]
[425787112,1781889050000,-526.949152,0.00034006,120]
[425787136,1781889050000,-300.0,0.00034104,2]
[425787140,1781889050000,-300.0,0.00034104,2]
[425787142,1781889050000,-300.0,0.00034104,2]
[425787138,1781889050000,-300.0,0.00034104,2]
[425787141,1781889050000,-300.0,0.00034104,2]
[425787145,1781889050000,-300.0,0.00034104,2]
[425787153,1781889050000,-300.7124566,0.00034104,2]
[425787144,1781889050000,-607.15070659,0.00034104,2]
[425787151,1781889050000,-300.0,0.00034104,2]
[425787154,1781889050000,-300.0,0.00034104,2]
[425787156,1781889050000,-300.0,0.00034104,2]
[425787143,1781889050000,-300.0,0.00034104,2]
[425787150,1781889050000,-301.81066392,0.00034104,2]
[425787149,1781889050000,-300.82215597,0.00034104,2]
[425787148,1781889050000,-300.0,0.00034104,2]
[425787146,1781889050000,-536.20027507,0.00034104,2]
[425787147,1781889050000,-729.30519734,0.00034104,2]
[425787155,1781889050000,-300.0,0.00034104,2]
[425787160,1781889050000,-300.0,0.00034104,2]
[425787162,1781889050000,-300.0,0.00034104,2]
[425787157,1781889050000,-868.23630602,0.00034104,2]
[425787161,1781889050000,-300.0,0.00034104,2]
[425787158,1781889050000,-300.0,0.00034104,2]
[425787101,1781889050000,-383.0,0.00033997,2]
[425787152,1781889050000,-300.0,0.00034104,2]
[425787134,1781889050000,-445.588316,0.00034104,2]
[425787159,1781889050000,-300.0,0.00034104,2]
[425787135,1781889050000,-300.0,0.00034104,2]
[425787109,1781889050000,-200.0,0.00034,2]
[425787132,1781889050000,-300.0,0.00034104,2]
[425787113,1781889050000,-200.0,0.00034045,10]
[425787110,1781889050000,-17844.48386182,0.00034,2]
[425787114,1781889050000,-500.0,0.00034063,27]
[425787117,1781889050000,-3647.0,0.00034074,2]
[425787111,1781889050000,-268.28,0.00034,30]
[425787116,1781889050000,-1215.0,0.00034074,2]
[425787118,1781889050000,-6081.0,0.00034074,2]
[425787120,1781889050000,-300.0,0.00034104,2]
[425787119,1781889050000,-348.73,0.000341,7]
[425787122,1781889050000,-300.0,0.00034104,2]
[425787115,1781889050000,-671.26000469,0.00034071,2]
[425787121,1781889050000,-300.0,0.00034104,2]
[425787124,1781889050000,-596.6186847,0.00034104,2]
[425787139,1781889050000,-300.0,0.00034104,2]
[425787133,1781889050000,-300.0,0.00034104,2]
[425787128,1781889050000,-300.0,0.00034104,2]
[425787129,1781889050000,-453.76238698,0.00034104,2]
[425787137,1781889050000,-300.0,0.00034104,2]
[425787125,1781889050000,-300.0,0.00034104,2]
[425787126,1781889050000,-513.37925185,0.00034104,2]
[425787123,1781889050000,-300.0,0.00034104,2]
[425787130,1781889050000,-300.0,0.00034104,2]
[425787131,1781889050000,-300.0,0.00034104,2]
[425787127,1781889050000,-300.0,0.00034104,2]
[425787184,1781889051000,-300.0,0.00034104,2]
[425787204,1781889051000,-1907.48,0.000345,20]
[425787189,1781889051000,-172.47,0.00034123,120]
[425787188,1781889051000,-249.27302393,0.00034114,7]
[425787195,1781889051000,-301.14337869,0.00034446,2]
[425787194,1781889051000,-804.17102365,0.00034443,2]
[425787200,1781889051000,-1000.0,0.00034475,2]
[425787196,1781889051000,-150.0,0.00034453,2]
[425787182,1781889051000,-300.0,0.00034104,2]
[425787199,1781889051000,-1000.0,0.00034475,2]
[425787203,1781889051000,-2119.43,0.000345,30]
[425787197,1781889051000,-150.0,0.00034453,2]
[425787198,1781889051000,-150.0,0.00034453,2]
[425787205,1781889051000,-2119.43,0.000345,10]
[425787202,1781889051000,-1907.04,0.000345,30]
[425787206,1781889051000,-1907.48,0.000345,10]
[425787208,1781889051000,-157.5599,0.00034521,2]
[425787213,1781889051000,-196.55090101,0.00034592,2]
[425787211,1781889051000,-584.17,0.0003459,30]
[425787193,1781889051000,-644.79446245,0.00034443,2]
[425787212,1781889051000,-178.82894339,0.00034592,2]
[425787201,1781889051000,-1783.32,0.00034475,2]
[425787187,1781889051000,-223.46525726,0.0003411,7]
[425787173,1781889051000,-453.76238698,0.00034104,2]
[425787185,1781889051000,-300.0,0.00034104,2]
[425787209,1781889051000,-153.995036,0.00034531,120]
[425787163,1781889051000,-300.0,0.00034104,2]
[425787164,1781889051000,-1346.77663016,0.00034104,2]
[425787165,1781889051000,-300.0,0.00034104,2]
[425787166,1781889051000,-300.0,0.00034104,2]
[425787168,1781889051000,-300.0,0.00034104,2]
[425787167,1781889051000,-596.6186847,0.00034104,2]
[425787176,1781889051000,-300.0,0.00034104,2]
[425787171,1781889051000,-583.77891855,0.00034104,2]
[425787169,1781889051000,-513.37925185,0.00034104,2]
[425787191,1781889051000,-151.951254,0.00034219,120]
[425787179,1781889051000,-445.588316,0.00034104,2]
[425787172,1781889051000,-300.78374993,0.00034104,2]
[425787178,1781889051000,-300.0,0.00034104,2]
[425787170,1781889051000,-300.0,0.00034104,2]
[425787175,1781889051000,-300.0,0.00034104,2]
[425787180,1781889051000,-300.0,0.00034104,2]
[425787174,1781889051000,-300.0,0.00034104,2]
[425787181,1781889051000,-300.0,0.00034104,2]
[425787186,1781889051000,-301.27915307,0.00034104,2]
[425787190,1781889051000,-150.0,0.0003419,2]
[425787192,1781889051000,-150.5,0.00034358,2]
[425787177,1781889051000,-300.0,0.00034104,2]
[425787210,1781889051000,-297.37,0.00034544,60]
[425787183,1781889051000,-300.0,0.00034104,2]
[425787216,1781889051000,-170.80544032,0.00034606,2]
[425787242,1781889051000,-436.934924,0.000349,7]
[425787241,1781889051000,-436.934924,0.000349,7]
[425787244,1781889051000,-436.934924,0.000349,7]
[425787247,1781889051000,-279.0,0.00034957,30]
[425787243,1781889051000,-436.934924,0.000349,7]
[425787246,1781889051000,-155.0,0.00034952,30]
[425787248,1781889051000,-410.0,0.00034957,30]
[425787245,1781889051000,-151.0,0.000349,7]
[425787250,1781889051000,-238.0,0.00034957,30]
[425787260,1781889051000,-1791.0,0.00035128,10]
[425787249,1781889051000,-355.0,0.00034957,30]
[425787259,1781889051000,-249.27302393,0.00035114,7]
[425787258,1781889051000,-500.0,0.00035085,29]
[425787253,1781889051000,-92667.6,0.00035,120]
[425787251,1781889051000,-150.166374,0.00034964,120]
[425787257,1781889051000,-1460.41,0.0003503,62]
[425787252,1781889051000,-2573.0158668,0.00035,2]
[425787255,1781889051000,-3071.42153114,0.00035,2]
[425787256,1781889051000,-3620.52798931,0.00035,120]
[425787261,1781889051000,-357837.20277045,0.00035157,2]
[425787262,1781889051000,-3976.27823053,0.00035157,2]
[425787239,1781889051000,-900.0,0.000349,12]
[425787240,1781889051000,-300.0,0.000349,12]
[425787254,1781889051000,-5038.4764506,0.00035,2]
[425787234,1781889051000,-348.73,0.000348,7]
[425787238,1781889051000,-186.99453517,0.000349,2]
[425787218,1781889051000,-464.19800431,0.00034606,2]
[425787217,1781889051000,-218.58643092,0.00034606,2]
[425787215,1781889051000,-228.51876554,0.00034606,2]
[425787214,1781889051000,-512.09292551,0.00034596,2]
[425787220,1781889051000,-483.78373638,0.00034606,2]
[425787222,1781889051000,-606.14924723,0.00034606,2]
[425787221,1781889051000,-650.71406871,0.00034606,2]
[425787223,1781889051000,-645.62746909,0.00034606,2]
[425787219,1781889051000,-242.93830901,0.00034606,2]
[425787226,1781889051000,-209.27827686,0.00034614,2]
[425787207,1781889051000,-450.040392,0.00034503,2]
[425787225,1781889051000,-590.54267861,0.00034614,2]
[425787224,1781889051000,-466.46336743,0.00034606,2]
[425787228,1781889051000,-791.22,0.00034646,7]
[425787230,1781889051000,-500.0,0.00034712,2]
[425787229,1781889051000,-5633.47,0.0003468,2]
[425787231,1781889051000,-377323.0,0.0003478,30]
[425787232,1781889051000,-1500.0,0.00034795,2]
[425787237,1781889051000,-268.28,0.000349,30]
[425787236,1781889051000,-1500.0,0.000349,7]
[425787235,1781889051000,-44058.64230458,0.000349,2]
[425787227,1781889051000,-497.20788547,0.00034614,2]
[425787233,1781889051000,-2000.0,0.00034795,7]
[425787269,1781889052000,-510.0,0.00029848,4]
[425787273,1781889052000,-2327.14,0.00031699,2]
[425787271,1781889052000,-670.31,0.00030136,30]
[425787266,1781889052000,-510.0,0.00027137,2]
[425787275,1781889052000,-2000.0,0.00032877,50]
[425787268,1781889052000,-950.86403058,0.00029582,14]
[425787264,1781889052000,-5096.49613125,0.00021,2]
[425787265,1781889052000,-3461.28014401,0.00021,2]
[425787263,1781889052000,-150.0,0.00015303,2]
[425787267,1781889052000,-510.0,0.00028492,3]
[425787270,1781889052000,-670.3,0.0003006,2]
[425787277,1781889052000,-300.74032258,0.00034104,2]
[425787272,1781889052000,-510.0,0.00031203,6]
[425787274,1781889052000,-510.0,0.00032559,7]
[425787283,1781889052000,-62899.99999999,0.00035157,2]
[425787279,1781889052000,-247362.18463667,0.00035157,2]
[425787281,1781889052000,-272.00011873,0.00035157,2]
[425787286,1781889052000,154.77155199,7.914e-05,2]
[425787278,1781889052000,-300.0,0.00034104,2]
[425787280,1781889052000,-2512.19352918,0.00035157,2]
[425787282,1781889052000,-558.28272397,0.00035157,2]
[425787276,1781889052000,-510.0,0.00033914,9]
[425787284,1781889052000,-2369.85084808,0.00035157,2]
[425787285,1781889052000,-1258.20843806,0.00035157,2]
[425787287,1781889061000,1811.0,0.00029862,120]
[425787290,1781889062000,1811.0,0.00029862,120]
[425787289,1781889062000,1811.0,0.00029862,120]
[425787288,1781889062000,1811.0,0.00029862,120]
[425787292,1781889063000,1811.0,0.00029862,120]
[425787291,1781889063000,1811.0,0.00029862,120]
[425787293,1781889064000,1811.0,0.00029862,120]
[425787294,1781889064000,1811.0,0.00029862,120]
[425787296,1781889064000,1818.0,0.00029862,120]
[425787295,1781889064000,1811.0,0.00029862,120]
[425787297,1781889244000,-150.0,0.00015727,7]
[425787298,1781889297000,-500.0,0.00015999,2]
[425787299,1781889351000,-2401.51650709,0.00015898,2]
[425787300,1781889365000,-1011.48856729,0.00015898,2]
[425787302,1781889418000,-221.067872,0.00015997,2]
[425787303,1781889472000,-347.81336642,0.00015638,2]
[425787306,1781889526000,-300.0,0.00015996,2]
[425787307,1781889580000,-300.0,0.00015998,2]
[425787308,1781889595000,251.93,0.0002865,120]
[425787310,1781889600000,300.07,0.00028662,120]
[425787309,1781889600000,300.07,0.00026056,120]
[425787311,1781889743000,-150.0,0.00016003,2]
[425787317,1781889888000,-154.7475104,0.00016921,2]
[425787312,1781889888000,-160.0,0.00016012,2]
[425787313,1781889888000,-151.0,0.00016129,2]
[425787315,1781889888000,-151.64,0.000163,2]
[425787314,1781889888000,-151.0,0.00016129,2]
[425787316,1781889888000,-214.66326484,0.00016921,2]
[425787318,1781889888000,-500.0,0.00016921,2]
[425787319,1781889888000,-500.0,0.00016921,2]
[425787320,1781889888000,-319.89138641,0.00016921,2]
[425787322,1781889888000,-500.0,0.00016921,2]
[425787324,1781889888000,-500.0,0.00016921,2]
[425787323,1781889888000,-172.1670956,0.00016921,2]
[425787325,1781889888000,-500.0,0.00016921,2]
[425787326,1781889888000,-500.0,0.00016921,2]
[425787327,1781889888000,-500.0,0.00016921,2]
[425787328,1781889888000,-350.26945995,0.00016921,2]
[425787321,1781889888000,-470.26341845,0.00016921,2]
[425787329,1781889888000,-500.0,0.00016921,2]
[425787346,1781889889000,-500.0,0.00016921,2]
[425787343,1781889889000,-500.0,0.00016921,2]
[425787342,1781889889000,-500.0,0.00016921,2]
[425787341,1781889889000,-500.0,0.00016921,2]
[425787340,1781889889000,-500.0,0.00016921,2]
[425787337,1781889889000,-500.0,0.00016921,2]
[425787338,1781889889000,-500.0,0.00016921,2]
[425787334,1781889889000,-500.0,0.00016921,2]
[425787339,1781889889000,-641.37995216,0.00016921,2]
[425787335,1781889889000,-500.0,0.00016921,2]
[425787333,1781889889000,-500.0,0.00016921,2]
[425787332,1781889889000,-500.0,0.00016921,2]
[425787331,1781889889000,-500.0,0.00016921,2]
[425787330,1781889889000,-500.0,0.00016921,2]
[425787336,1781889889000,-500.0,0.00016921,2]
[425787345,1781889889000,-500.0,0.00016921,2]
[425787355,1781889889000,-500.0,0.00016921,2]
[425787348,1781889889000,-500.0,0.00016921,2]
[425787344,1781889889000,-500.0,0.00016921,2]
[425787363,1781889889000,-500.0,0.00016921,2]
[425787362,1781889889000,-500.0,0.00016921,2]
[425787361,1781889889000,-417.12700612,0.00016921,2]
[425787360,1781889889000,-500.0,0.00016921,2]
[425787358,1781889889000,-500.0,0.00016921,2]
[425787357,1781889889000,-500.0,0.00016921,2]
[425787359,1781889889000,-500.0,0.00016921,2]
[425787354,1781889889000,-500.0,0.00016921,2]
[425787351,1781889889000,-500.0,0.00016921,2]
[425787353,1781889889000,-500.0,0.00016921,2]
[425787352,1781889889000,-500.0,0.00016921,2]
[425787350,1781889889000,-500.0,0.00016921,2]
[425787347,1781889889000,-500.0,0.00016921,2]
[425787349,1781889889000,-500.0,0.00016921,2]
[425787356,1781889889000,-500.0,0.00016921,2]
[425787370,1781889890000,-500.0,0.00016921,2]
[425787377,1781889890000,-500.0,0.00016921,2]
[425787376,1781889890000,-500.0,0.00016921,2]
[425787374,1781889890000,-500.0,0.00016921,2]
[425787375,1781889890000,-500.0,0.00016921,2]
[425787373,1781889890000,-500.0,0.00016921,2]
[425787372,1781889890000,-500.0,0.00016921,2]
[425787378,1781889890000,-500.0,0.00016921,2]
[425787369,1781889890000,-500.0,0.00016921,2]
[425787368,1781889890000,-500.0,0.00016921,2]
[425787367,1781889890000,-500.0,0.00016921,2]
[425787365,1781889890000,-500.0,0.00016921,2]
[425787366,1781889890000,-500.0,0.00016921,2]
[425787364,1781889890000,-500.0,0.00016921,2]
[425787371,1781889890000,-500.0,0.00016921,2]
[425787380,1781889890000,-500.0,0.00016921,2]
[425787379,1781889890000,-500.0,0.00016921,2]
[425787396,1781889890000,-216.24448118,0.00017,7]
[425787383,1781889890000,-500.0,0.00016921,2]